fUSD/lending_fUSD_20250223
["ID","MTS","AMOUNT","RATE_DAILY","PERIOD"]
[354225954,1740353451573,-500.0,0.0001652,2]
[354225955,1740353451583,-500.0,0.0001652,2]
[354225956,1740353451592,-500.0,0.0001652,2]
[354225957,1740353451601,-500.0,0.0001652,2]
[354225958,1740353451610,-500.0,0.0001652,2]
[354225959,1740353451619,-500.0,0.0001652,2]
[354225960,1740353451627,-500.0,0.0001652,2]
[354225961,1740353451636,-1111.83,0.0001652,2]
[354225962,1740353451645,-500.0,0.0001652,2]
[354225963,1740353451654,-500.0,0.0001652,2]
[354225964,1740353451664,-500.0,0.0001652,2]
[354225965,1740353451673,-500.0,0.0001652,2]
[354225966,1740353451682,-500.0,0.0001652,2]
[354225967,1740353451691,-871.11,0.0001652,2]
[354225968,1740353451700,-500.0,0.0001652,2]
[354225969,1740353451709,-500.0,0.0001652,2]
[354225970,1740353451718,-500.0,0.0001652,2]
[354225971,1740353451727,-500.0,0.0001652,2]
[354225972,1740353451735,-500.0,0.0001652,2]
[354225973,1740353451745,-500.0,0.0001652,2]
[354225974,1740353451754,-653.59,0.0001652,2]
[354225975,1740353451763,-500.0,0.0001652,2]
[354225976,1740353451773,-500.0,0.0001652,2]
[354225977,1740353451782,-1545.06,0.0001652,2]
[354225978,1740353451791,-500.0,0.0001652,2]
[354225979,1740353451801,-500.0,0.0001652,2]
[354225980,1740353451810,-500.0,0.0001652,2]
[354225981,1740353451819,-1353.57,0.0001652,2]
[354225982,1740353451828,-418.92,0.0001652,2]
[354225983,1740353451837,-500.0,0.0001652,2]
[354225984,1740353451846,-503.21964425,0.0001652,2]
[354225985,1740353451855,-523.27,0.0001652,2]
[354225986,1740353451864,-414.3086174,0.0001652,2]
[354225987,1740353451873,-500.0,0.0001652,2]
[354225988,1740353451882,-500.0,0.0001652,2]
[354225989,1740353451891,-500.0,0.0001652,2]
[354225990,1740353451900,-500.0,0.0001652,2]
[354225991,1740353451910,-1352.93,0.0001652,2]
[354225992,1740353451919,-1011.08,0.0001652,2]
[354225993,1740353451928,-1000.26,0.0001652,2]
[354225994,1740353451937,-1500.09,0.0001652,2]
[354225995,1740353451947,-500.0,0.0001652,2]
[354225996,1740353451955,-708.96,0.0001652,2]
[354225997,1740353451964,-500.0,0.0001652,2]
[354225998,1740353451975,-575.78,0.0001652,2]
[354225999,1740353451987,-1015.35,0.0001652,2]
[354226000,1740353451996,-991.38,0.0001652,2]
[354226001,1740353452005,-1549.18,0.0001652,2]
[354226002,1740353452014,-529.22,0.0001652,2]
[354226003,1740353452026,-500.0,0.0001652,2]
[354226004,1740353452035,-829.1,0.0001652,2]
[354226005,1740353452045,-500.0,0.0001652,2]
[354226006,1740353452055,-500.0,0.0001652,2]
[354226007,1740353452065,-859.55,0.0001652,2]
[354226008,1740353452074,-1497.27,0.0001652,2]
[354226009,1740353452084,-500.0,0.0001652,2]
[354226010,1740353452093,-500.0,0.0001652,2]
[354226011,1740353452102,-500.0,0.0001652,2]
[354226012,1740353452112,-500.0,0.0001652,2]
[354226013,1740353452121,-568.08,0.0001652,2]
[354226014,1740353452130,-1436.02,0.0001652,2]
[354226015,1740353452139,-500.0,0.0001652,2]
[354226016,1740353452148,-721.44,0.0001652,2]
[354226017,1740353452157,-769.04,0.0001652,2]
[354226018,1740353452166,-411.38351667,0.0001652,2]
[354226019,1740353452176,-500.0,0.0001652,2]
[354226020,1740353452185,-841.61,0.0001652,2]
[354226021,1740353452194,-500.0,0.0001652,2]
[354226022,1740353452203,-1264.07,0.0001652,2]
[354226023,1740353452212,-599.2,0.0001652,2]
[354226024,1740353452221,-1067.3,0.0001652,2]
[354226025,1740353452229,-500.0,0.0001652,2]
[354226026,1740353452238,-500.0,0.0001652,2]
[354226027,1740353452248,-800.15,0.0001652,2]
[354226028,1740353452257,-1000.0,0.0001652,2]
[354226029,1740353452266,-793.84,0.0001652,2]
[354226030,1740353452276,-500.0,0.0001652,2]
[354226031,1740353452285,-500.0,0.0001652,2]
[354226032,1740353452295,-500.0,0.0001652,2]
[354226033,1740353452304,-500.0,0.0001652,2]
[354226034,1740353452313,-500.0,0.0001652,2]
[354226035,1740353452324,-554.26,0.0001652,2]
[354226036,1740353452333,-500.0,0.0001652,2]
[354226037,1740353452342,-878.11,0.0001652,2]
[354226038,1740353452465,-1660.82,0.0001652,2]
[354226039,1740353452475,-1323.9,0.0001652,2]
[354226040,1740353452485,-591.7,0.0001652,2]
[354226041,1740353452495,-500.0,0.0001652,2]
[354226042,1740353452504,-500.0,0.0001652,2]
[354226043,1740353452513,-1304.43,0.0001652,2]
[354226044,1740353452523,-655.13,0.0001652,2]
[354226045,1740353452532,-613.34,0.0001652,2]
[354226046,1740353452542,-819.66,0.0001652,2]
[354226047,1740353452551,-500.0,0.0001652,2]
[354226048,1740353452560,-500.0,0.0001652,2]
[354226049,1740353452570,-1327.72,0.0001652,2]
[354226050,1740353452579,-601.57,0.0001652,2]
[354226051,1740353452589,-500.0,0.0001652,2]
[354226052,1740353452598,-842.39,0.0001652,2]
[354226053,1740353452607,-500.0,0.0001652,2]
[354226054,1740353452616,-925.77,0.0001652,2]
[354226055,1740353452625,-1006.85,0.0001652,2]
[354226056,1740353452634,-1618.37,0.0001652,2]
[354226057,1740353452643,-744.24,0.0001652,2]
[354226058,1740353452651,-912.53,0.0001652,2]
[354226059,1740353452661,-500.0,0.0001652,2]
[354226060,1740353452672,-946.08,0.0001652,2]
[354226061,1740353452683,-249.017467,0.0001652,2]
[354226062,1740353452693,-500.0,0.0001652,2]
[354226063,1740353452702,-1675.32,0.0001652,2]
[354226064,1740353452711,-1433.69,0.0001652,2]
[354226065,1740353452720,-700.81,0.0001652,2]
[354226066,1740353452729,-753.58,0.0001652,2]
[354226067,1740353452738,-1458.26,0.0001652,2]
[354226068,1740353452747,-290.81195829,0.0001652,2]
[354226069,1740353452756,-707.82,0.0001652,2]
[354226070,1740353452765,-1177.05,0.0001652,2]
[354226071,1740353452775,-1614.73,0.0001652,2]
[354226072,1740353452784,-751.63,0.0001652,2]
[354226073,1740353452793,-347.2944,0.0001652,2]
[354226074,1740353452802,-500.0,0.0001652,2]
[354226075,1740353452811,-500.0,0.0001652,2]
[354226076,1740353452821,-500.0,0.0001652,2]
[354226077,1740353452830,-500.0,0.0001652,2]
[354226078,1740353452839,-500.0,0.0001652,2]
[354226079,1740353452848,-647.68,0.0001652,2]
[354226080,1740353452857,-500.0,0.0001652,2]
[354226081,1740353452866,-1759.43,0.0001652,2]
[354226082,1740353452875,-500.0,0.0001652,2]
[354226083,1740353452884,-500.0,0.0001652,2]
[354226084,1740353452893,-500.0,0.0001652,2]
[354226085,1740353452902,-797.18,0.0001652,2]
[354226086,1740353452911,-919.37,0.0001652,2]
[354226087,1740353452920,-500.0,0.0001652,2]
[354226088,1740353452930,-841.02,0.0001652,2]
[354226089,1740353452939,-848.57,0.0001652,2]
[354226090,1740353452949,-679.91,0.0001652,2]
[354226091,1740353452958,-500.0,0.0001652,2]
[354226092,1740353452967,-685.45,0.0001652,2]
[354226093,1740353452979,-1150.94,0.0001652,2]
[354226094,1740353452988,-640.58,0.0001652,2]
[354226095,1740353452998,-533.66,0.0001652,2]
[354226096,1740353453008,-500.0,0.0001652,2]
[354226097,1740353453017,-500.0,0.0001652,2]
[354226098,1740353453028,-500.0,0.0001652,2]
[354226099,1740353453038,-247.26330494,0.0001652,2]
[354226100,1740353453047,-500.0,0.0001652,2]
[354226101,1740353453056,-500.0,0.0001652,2]
[354226102,1740353453065,-933.73,0.0001652,2]
[354226103,1740353453074,-500.0,0.0001652,2]
[354226104,1740353453084,-2003.28,0.0001652,2]
[354226105,1740353453094,-748.45,0.0001652,2]
[354226106,1740353453103,-500.0,0.0001652,2]
[354226107,1740353453112,-500.0,0.0001652,2]
[354226108,1740353453122,-500.0,0.0001652,2]
[354226109,1740353453131,-691.94,0.0001652,2]
[354226110,1740353453140,-500.0,0.0001652,2]
[354226111,1740353453150,-500.0,0.0001652,2]
[354226112,1740353453159,-727.95,0.0001652,2]
[354226113,1740353453169,-500.0,0.0001652,2]
[354226114,1740353453179,-699.11,0.0001652,2]
[354226115,1740353453189,-749.39,0.0001652,2]
[354226116,1740353453198,-1172.31,0.0001652,2]
[354226117,1740353453208,-544.31,0.0001652,2]
[354226118,1740353453218,-541.75,0.0001652,2]
[354226119,1740353453228,-794.72,0.0001652,2]
[354226120,1740353453238,-500.0,0.0001652,2]
[354226121,1740353453247,-1092.04,0.0001652,2]
[354226122,1740353453257,-1523.18,0.0001652,2]
[354226123,1740353453267,-500.0,0.0001652,2]
[354226124,1740353453278,-500.0,0.0001652,2]
[354226125,1740353453287,-1814.48,0.0001652,2]
[354226126,1740353453297,-768.27,0.0001652,2]
[354226127,1740353453307,-500.0,0.0001652,2]
[354226128,1740353453316,-500.0,0.0001652,2]
[354226129,1740353453325,-909.87,0.0001652,2]
[354226130,1740353453335,-945.62,0.0001652,2]
[354226131,1740353453344,-500.0,0.0001652,2]
[354226132,1740353453354,-756.42,0.0001652,2]
[354226133,1740353453363,-500.0,0.0001652,2]
[354226134,1740353453372,-500.0,0.0001652,2]
[354226135,1740353453382,-500.0,0.0001652,2]
[354226136,1740353453391,-940.07,0.0001652,2]
[354226137,1740353453400,-1635.88,0.0001652,2]
[354226138,1740353453410,-514.88984611,0.0001652,2]
[354226139,1740353453419,-500.0,0.0001652,2]
[354226140,1740353453428,-1091.74,0.0001652,2]
[354226141,1740353453438,-500.0,0.0001652,2]
[354226142,1740353453447,-500.0,0.0001652,2]
[354226143,1740353453456,-500.0,0.0001652,2]
[354226144,1740353453465,-1556.84,0.0001652,2]
[354226145,1740353453474,-500.0,0.0001652,2]
[354226146,1740353453484,-500.0,0.0001652,2]
[354226147,1740353453493,-500.0,0.0001652,2]
[354226148,1740353453502,-500.0,0.0001652,2]
[354226149,1740353453511,-500.0,0.0001652,2]
[354226150,1740353453521,-502.60152848,0.0001652,2]
[354226151,1740353453532,-500.0,0.0001652,2]
[354226152,1740353453542,-500.0,0.0001652,2]
[354226153,1740353453551,-1812.38,0.0001652,2]
[354226154,1740353453561,-672.23,0.0001652,2]
[354226155,1740353453570,-500.0,0.0001652,2]
[354226156,1740353453580,-500.0,0.0001652,2]
[354226157,1740353453590,-761.96,0.0001652,2]
[354226158,1740353453599,-500.0,0.0001652,2]
[354226159,1740353453609,-499.80248857,0.0001652,2]
[354226160,1740353453619,-500.0,0.0001652,2]
[354226161,1740353453628,-1030.55,0.0001652,2]
[354226162,1740353453638,-500.0,0.0001652,2]
[354226163,1740353453647,-500.0,0.0001652,2]
[354226164,1740353453657,-500.0,0.0001652,2]
[354226165,1740353453667,-1056.73,0.0001652,2]
[354226166,1740353453676,-500.0,0.0001652,2]
[354226167,1740353453686,-512.51,0.0001652,2]
[354226168,1740353453696,-500.0,0.0001652,2]
[354226169,1740353453706,-500.0,0.0001652,2]
[354226170,1740353453715,-1094.0,0.0001652,2]
[354226171,1740353453725,-500.0,0.0001652,2]
[354226172,1740353453734,-500.0,0.0001652,2]
[354226173,1740353453743,-500.0,0.0001652,2]
[354226174,1740353453752,-702.59,0.0001652,2]
[354226175,1740353453762,-500.0,0.0001652,2]
[354226176,1740353453771,-566.73,0.0001652,2]
[354226177,1740353453784,-1810.65,0.0001652,2]
[354226178,1740353453794,-1780.58,0.0001652,2]
[354226179,1740353453803,-177.42734331,0.0001652,2]
[354226180,1740353453813,-500.0,0.0001652,2]
[354226181,1740353453822,-2145.28,0.0001652,2]
[354226182,1740353453831,-500.0,0.0001652,2]
[354226183,1740353453841,-500.0,0.0001652,2]
[354226184,1740353453850,-500.0,0.0001652,2]
[354226185,1740353453860,-500.0,0.0001652,2]
[354226186,1740353453870,-500.0,0.0001652,2]
[354226187,1740353453879,-768.28,0.0001652,2]
[354226188,1740353453889,-500.0,0.0001652,2]
[354226189,1740353453899,-500.0,0.0001652,2]
[354226190,1740353453908,-1355.79,0.0001652,2]
[354226191,1740353453918,-3419.84,0.0001652,2]
[354226192,1740353453927,-500.0,0.0001652,2]
[354226193,1740353453936,-500.0,0.0001652,2]
[354226194,1740353453946,-500.0,0.0001652,2]
[354226195,1740353453955,-903.44,0.0001652,2]
[354226196,1740353453965,-789.8,0.0001652,2]
[354226197,1740353453974,-500.0,0.0001652,2]
[354226198,1740353453987,-930.11,0.0001652,2]
[354226199,1740353453996,-3374.28,0.0001652,2]
[354226200,1740353454006,-1361.46,0.0001652,2]
[354226201,1740353454015,-500.0,0.0001652,2]
[354226202,1740353454026,-500.0,0.0001652,2]
[354226203,1740353454036,-861.81,0.0001652,2]
[354226204,1740353454045,-1538.75,0.0001652,2]
[354226205,1740353454056,-500.0,0.0001652,2]
[354226206,1740353454065,-2228.34,0.0001652,2]
[354226207,1740353454074,-1332.93,0.0001652,2]
[354226208,1740353454084,-426.40257986,0.0001652,2]
[354226209,1740353454109,-73.59742014,0.0001652,2]
[354226210,1740353454118,-3123.67911,0.0001652,2]
[354226211,1740353454128,-1249.71,0.0001652,2]
[354226212,1740353454137,-500.0,0.0001652,2]
[354226213,1740353454147,-500.0,0.0001652,2]
[354226214,1740353454156,-3444.02,0.0001652,2]
[354226215,1740353454165,-500.0,0.0001652,2]
[354226216,1740353454174,-4982.05,0.0001652,2]
[354226217,1740353454183,-793.58,0.0001652,2]
[354226218,1740353454193,-4534.88,0.0001652,2]
[354226219,1740353454201,-500.0,0.0001652,2]
[354226220,1740353454210,-996.8,0.0001652,2]
[354226221,1740353454219,-1506.19,0.0001652,2]
[354226222,1740353454228,-500.0,0.0001652,2]
[354226223,1740353454237,-500.0,0.0001652,2]
[354226224,1740353454246,-676.59,0.0001652,2]
[354226225,1740353454255,-1565.13,0.0001652,2]
[354226226,1740353454264,-3940.44,0.0001652,2]
[354226227,1740353454274,-1729.64,0.0001652,2]
[354226228,1740353454283,-500.0,0.0001652,2]
[354226229,1740353454293,-2061.82,0.0001652,2]
[354226230,1740353454302,-560.29598802,0.0001652,2]
[354226231,1740353454311,-914.7,0.0001652,2]
[354226232,1740353454321,-1510.76,0.0001652,2]
[354226233,1740353454330,-1515.73,0.0001652,2]
[354226234,1740353454340,-500.0,0.0001652,2]
[354226235,1740353454349,-1772.15,0.0001652,2]
[354226236,1740353454359,-1327.26,0.0001652,2]
[354226237,1740353454369,-508.07927013,0.0001652,2]
[354226238,1740353454378,-500.0,0.0001652,2]
[354226239,1740353454387,-505.56070881,0.0001652,2]
[354226240,1740353454396,-500.0,0.0001652,2]
[354226241,1740353454406,-8381.48,0.0001652,2]
[354226242,1740353454415,-356.19043479,0.0001652,2]
[354226243,1740353454424,-2177.57,0.0001652,2]
[354226244,1740353454433,-988.11,0.0001652,2]
[354226245,1740353454444,-500.0,0.0001652,2]
[354226246,1740353454453,-500.0,0.0001652,2]
[354226247,1740353454462,-517.49227564,0.0001652,2]
[354226248,1740353454471,-3529.02,0.0001652,2]
[354226249,1740353454480,-1863.94,0.0001652,2]
[354226250,1740353454489,-500.0,0.0001652,2]
[354226251,1740353454498,-500.0,0.0001652,2]
[354226252,1740353454507,-3108.77,0.0001652,2]
[354226253,1740353454516,-500.0,0.0001652,2]
[354226254,1740353454525,-509.08,0.0001652,2]
[354226255,1740353454534,-4880.47,0.0001652,2]
[354226256,1740353454543,-500.0,0.0001652,2]
[354226257,1740353454553,-500.0,0.0001652,2]
[354226258,1740353454563,-988.44,0.0001652,2]
[354226259,1740353454572,-3416.71,0.0001652,2]
[354226260,1740353454582,-1033.08,0.0001652,2]
[354226261,1740353454591,-711.6,0.0001652,2]
[354226262,1740353454601,-3794.22,0.0001652,2]
[354226263,1740353454610,-687.99,0.0001652,2]
[354226264,1740353454620,-2183.59,0.0001652,2]
[354226265,1740353454630,-500.0,0.0001652,2]
[354226266,1740353454639,-666.84,0.0001652,2]
[354226267,1740353454649,-500.0,0.0001652,2]
[354226268,1740353454658,-1360.01,0.0001652,2]
[354226269,1740353454667,-2691.73,0.0001652,2]
[354226270,1740353454677,-1516.02,0.0001652,2]
[354226271,1740353454687,-2250.19,0.0001652,2]
[354226272,1740353454697,-3043.56,0.0001652,2]
[354226273,1740353454707,-500.0,0.0001652,2]
[354226274,1740353454716,-4047.89,0.0001652,2]
[354226275,1740353454725,-741.57,0.0001652,2]
[354226276,1740353455020,-500.0,0.0001652,2]
[354226277,1740353455036,-962.95,0.0001652,2]
[354226278,1740353455045,-493.86523728,0.0001652,2]
[354226279,1740353455055,-500.0,0.0001652,2]
[354226280,1740353455065,-3262.59,0.0001652,2]
[354226281,1740353455075,-3135.8,0.0001652,2]
[354226282,1740353455085,-1117.59,0.0001652,2]
[354226283,1740353455095,-11350.88,0.0001652,2]
[354226284,1740353455104,-500.0,0.0001652,2]
[354226285,1740353455114,-500.0,0.0001652,2]
[354226286,1740353455124,-2070.05,0.0001652,2]
[354226287,1740353455134,-684.7,0.0001652,2]
[354226288,1740353455143,-500.0,0.0001652,2]
[354226289,1740353455152,-500.0,0.0001652,2]
[354226290,1740353455162,-2288.44,0.0001652,2]
[354226291,1740353455172,-1698.24,0.0001652,2]
[354226292,1740353455181,-500.0,0.0001652,2]
[354226293,1740353455191,-2235.47,0.0001652,2]
[354226294,1740353455202,-688.3,0.0001652,2]
[354226295,1740353455213,-500.0,0.0001652,2]
[354226296,1740353455222,-619.5,0.0001652,2]
[354226297,1740353455232,-500.0,0.0001652,2]
[354226298,1740353455242,-854.83,0.0001652,2]
[354226299,1740353455251,-285.26267748,0.0001652,2]
[354226300,1740353455260,-1443.32,0.0001652,2]
[354226301,1740353455270,-2374.82,0.0001652,2]
[354226302,1740353455279,-500.0,0.0001652,2]
[354226303,1740353455288,-3635.87,0.0001652,2]
[354226304,1740353455298,-2655.28,0.0001652,2]
[354226305,1740353455307,-2119.63,0.0001652,2]
[354226306,1740353455317,-3247.38,0.0001652,2]
[354226307,1740353455326,-590.04,0.0001652,2]
[354226308,1740353455335,-1084.51,0.0001652,2]
[354226309,1740353455345,-3009.5,0.0001652,2]
[354226310,1740353455355,-1193.14,0.0001652,2]
[354226311,1740353455364,-2121.71,0.0001652,2]
[354226312,1740353455374,-9038.34,0.0001652,2]
[354226313,1740353455384,-649.86,0.0001652,2]
[354226314,1740353455394,-500.0,0.0001652,2]
[354226315,1740353455403,-500.0,0.0001652,2]
[354226316,1740353455413,-500.0,0.0001652,2]
[354226317,1740353455422,-4001.14,0.0001652,2]
[354226318,1740353455432,-500.0,0.0001652,2]
[354226319,1740353455441,-2348.73,0.0001652,2]
[354226320,1740353455451,-1481.92,0.0001652,2]
[354226321,1740353455461,-2467.86,0.0001652,2]
[354226322,1740353455470,-1690.11,0.0001652,2]
[354226323,1740353455480,-500.0,0.0001652,2]
[354226324,1740353455489,-2824.09,0.0001652,2]
[354226325,1740353455499,-641.2,0.0001652,2]
[354226326,1740353455509,-1352.7,0.0001652,2]
[354226327,1740353455518,-5740.59,0.0001652,2]
[354226328,1740353455528,-500.0,0.0001652,2]
[354226329,1740353455538,-500.0,0.0001652,2]
[354226330,1740353455547,-3769.92,0.0001652,2]
[354226331,1740353455557,-505.07218259,0.0001652,2]
[354226332,1740353455567,-2651.04,0.0001652,2]
[354226333,1740353455576,-2054.97,0.0001652,2]
[354226334,1740353455586,-500.0,0.0001652,2]
[354226335,1740353455595,-2474.68,0.0001652,2]
[354226336,1740353455604,-1902.86,0.0001652,2]
[354226337,1740353455613,-500.0,0.0001652,2]
[354226338,1740353455623,-1861.3,0.0001652,2]
[354226339,1740353455633,-765.49,0.0001652,2]
[354226340,1740353455643,-2451.09,0.0001652,2]
[354226341,1740353455653,-500.0,0.0001652,2]
[354226342,1740353455662,-500.0,0.0001652,2]
[354226343,1740353455672,-2947.25,0.0001652,2]
[354226344,1740353455682,-1148.74,0.0001652,2]
[354226345,1740353455691,-921.14,0.0001652,2]
[354226346,1740353455701,-500.0,0.0001652,2]
[354226347,1740353455711,-2393.08,0.0001652,2]
[354226348,1740353455720,-3399.41,0.0001652,2]
[354226349,1740353455729,-1427.95,0.0001652,2]
[354226350,1740353455739,-500.0,0.0001652,2]
[354226351,1740353455748,-2168.65,0.0001652,2]
[354226352,1740353455758,-3075.28,0.0001652,2]
[354226353,1740353455767,-500.0,0.0001652,2]
[354226354,1740353455777,-507.18675482,0.0001652,2]
[354226355,1740353455787,-2865.2,0.0001652,2]
[354226356,1740353455796,-738.31,0.0001652,2]
[354226357,1740353455806,-1270.01,0.0001652,2]
[354226358,1740353455815,-559.85,0.0001652,2]
[354226359,1740353455825,-500.0,0.0001652,2]
[354226360,1740353455834,-500.0,0.0001652,2]
[354226361,1740353455843,-504.39279959,0.0001652,2]
[354226362,1740353455853,-500.0,0.0001652,2]
[354226363,1740353455864,-4248.12,0.0001652,2]
[354226364,1740353455873,-503.62379511,0.0001652,2]
[354226365,1740353455883,-889.27,0.0001652,2]
[354226366,1740353455893,-500.0,0.0001652,2]
[354226367,1740353455902,-2925.06,0.0001652,2]
[354226368,1740353455912,-500.0,0.0001652,2]
[354226369,1740353455922,-810.72,0.0001652,2]
[354226370,1740353455931,-500.0,0.0001652,2]
[354226371,1740353455940,-500.0,0.0001652,2]
[354226372,1740353455950,-2205.82,0.0001652,2]
[354226373,1740353455959,-2039.78,0.0001652,2]
[354226374,1740353455969,-978.16,0.0001652,2]
[354226375,1740353455978,-500.0,0.0001652,2]
[354226376,1740353455990,-1056.99,0.0001652,2]
[354226377,1740353455999,-961.55,0.0001652,2]
[354226378,1740353456009,-500.0,0.0001652,2]
[354226379,1740353456018,-500.0,0.0001652,2]
[354226380,1740353456030,-1065.57,0.0001652,2]
[354226381,1740353456039,-500.0,0.0001652,2]
[354226382,1740353456048,-3889.56,0.0001652,2]
[354226383,1740353456060,-1286.75,0.0001652,2]
[354226384,1740353456071,-504.18070804,0.0001652,2]
[354226385,1740353456080,-1867.88,0.0001652,2]
[354226386,1740353456090,-500.0,0.0001652,2]
[354226387,1740353456099,-586.28,0.0001652,2]
[354226388,1740353456109,-500.0,0.0001652,2]
[354226389,1740353456118,-500.0,0.0001652,2]
[354226390,1740353456128,-517.04754824,0.0001652,2]
[354226391,1740353456137,-500.0,0.0001652,2]
[354226392,1740353456148,-4249.4,0.0001652,2]
[354226393,1740353456157,-2861.57,0.0001652,2]
[354226394,1740353456167,-1253.92,0.0001652,2]
[354226395,1740353456177,-500.0,0.0001652,2]
[354226396,1740353456186,-514.67,0.0001652,2]
[354226397,1740353456195,-1535.67,0.0001652,2]
[354226398,1740353456206,-500.0,0.0001652,2]
[354226399,1740353456216,-500.0,0.0001652,2]
[354226400,1740353456226,-500.0,0.0001652,2]
[354226401,1740353456235,-527.21,0.0001652,2]
[354226402,1740353456245,-1547.08,0.0001652,2]
[354226403,1740353456254,-500.0,0.0001652,2]
[354226404,1740353456263,-1280.01,0.0001652,2]
[354226405,1740353456273,-1789.28,0.0001652,2]
[354226406,1740353456282,-500.0,0.0001652,2]
[354226407,1740353456291,-2104.09,0.0001652,2]
[354226408,1740353456300,-3204.29,0.0001652,2]
[354226409,1740353456310,-500.0,0.0001652,2]
[354226410,1740353456319,-700.04,0.0001652,2]
[354226411,1740353456327,-500.0,0.0001652,2]
[354226412,1740353456337,-500.0,0.0001652,2]
[354226413,1740353456346,-500.0,0.0001652,2]
[354226414,1740353456355,-500.0,0.0001652,2]
[354226415,1740353456364,-811.44,0.0001652,2]
[354226416,1740353456373,-3741.91,0.0001652,2]
[354226417,1740353456383,-500.0,0.0001652,2]
[354226418,1740353456392,-500.0,0.0001652,2]
[354226419,1740353456401,-849.84,0.0001652,2]
[354226420,1740353456411,-6894.13,0.0001652,2]
[354226421,1740353456420,-1185.61,0.0001652,2]
[354226422,1740353456430,-2904.93,0.0001652,2]
[354226423,1740353456440,-623.3,0.0001652,2]
[354226424,1740353456448,-510.39,0.0001652,2]
[354226425,1740353456457,-500.0,0.0001652,2]
[354226426,1740353456467,-500.0,0.0001652,2]
[354226427,1740353456476,-2119.38,0.0001652,2]
[354226428,1740353456485,-641.15,0.0001652,2]
[354226429,1740353456494,-594.83760305,0.0001652,2]
[354226430,1740353456504,-2112.78,0.0001652,2]
[354226431,1740353456513,-1083.69,0.0001652,2]
[354226432,1740353456522,-1421.77,0.0001652,2]
[354226433,1740353456533,-500.0,0.0001652,2]
[354226434,1740353456542,-500.0,0.0001652,2]
[354226435,1740353456552,-2508.93,0.0001652,2]
[354226436,1740353456562,-1065.63,0.0001652,2]
[354226437,1740353456571,-150.0,0.00016521,2]
[354226438,1740353456581,-150.0,0.00016522,2]
[354226439,1740353456591,-150.0,0.00016529,2]
[354226440,1740353456600,-362.36492487,0.0001653,2]
[354226441,1740353456610,-150.0,0.00016531,2]
[354226442,1740353456619,-502.91,0.00016542,2]
[354226443,1740353456629,-160.17133937,0.00016548,2]
[354226444,1740353456638,-240.25700906,0.00016548,2]
[354226445,1740353456648,-150.0,0.00016549,2]
[354226446,1740353456658,-1000.0,0.00016559,2]
[354226447,1740353456667,-150.0,0.00016559,2]
[354226448,1740353456677,-11677.0,0.00016575,2]
[354226449,1740353456686,-1169.0,0.00016575,2]
[354226450,1740353456695,-362.36492487,0.00016576,2]
[354226451,1740353456704,-150.0,0.00016576,2]
[354226452,1740353456714,-1000.0,0.00016579,2]
[354226453,1740353456723,-150.0,0.00016579,2]